Cogmind - Beta 15 @@@ ROGUE MODE // 2025.09.30 @ 12:25:24 Player: pandag Result: Destroyed by G-73 Enforcer with Phase Gun Performance ------------- Evolutions (9) 4500 Regions Visited (16) 3200 Robots Destroyed (74) 370 Value Destroyed (3108) 3108 Prototype IDs (28) 560 Alien Tech Used (2) 400 Bonus (938) 938 TOTAL SCORE: 13076 Bonus ------- High Alert Combat Kills 138 Entered DSFs 500 Met Zhirov 300 Cogmind --------- Core Integrity 0/1600 Matter 255/300 Energy 99/100 System Corruption 26% Temperature Cool (9) Movement Core (50) Location -1/Access Parts ------- > --- POWER (2) -------- (None) > --- PROPULSION (6) --- Combat Linear Gravjet > --- UTILITY (12) ----- Advanced Signal Interpreter Hacking Suite > --- WEAPON (5) ------- (None) > --- INVENTORY (5) ---- Quantum Reactor Reinforced Quantum Reactor Advanced Recoil Stabilizer Advanced Recoil Stabilizer Improved System Shield Peak State ------------ > --- POWER ------------ Antimatter Reactor Micro Antimatter Reactor > --- PROPULSION ------- Armored Leg Myomer Leg Advanced Myomer Leg Advanced Myomer Leg Advanced Myomer Leg > --- UTILITY ---------- Advanced Heat Sink Advanced Heat Sink Large Storage Unit Advanced Energy Well Structural Scanner Triangulator Spectral Analyzer Experimental Sensor Array Advanced Signal Interpreter Advanced Reaction Control System > --- WEAPON ----------- Plasma Rifle Beamcaster KE Penetrator Improved KE Penetrator > --- INVENTORY -------- Flexi-carbon Leg Shield Leg Advanced Terrain Scanner Advanced Recoil Stabilizer Advanced Transmission Jammer Advanced Hardlight Generator Sensor Drone Bay Transdimensional Reconstructor Quantum Rifle Railgun Long-range Missile Launcher Micro-nuke Launcher Micro-nuke Launcher Chainsword [Rating: 138] Favorites ----------- Power Light Fission Core Engine Ion Engine Power Core Light Fission Core Reactor Antimatter Reactor Propulsion Carbon-fiber Leg Treads Light Treads Leg Carbon-fiber Leg Wheel Compact Wheel Hover Unit Combat Linear Gravjet Flight Unit Impulse Thruster Array Utility Large Storage Unit Device Experimental Sensor Array Storage Large Storage Unit Processor Advanced Signal Interpreter Hackware Hacking Suite Protection Experimental Propulsion Shielding Weapon Thermic Laser Energy Gun Thermic Laser Energy Cannon Enhanced Nova Cannon Ballistic Gun Heavy Assault Rifle Launcher Micro-nuke Launcher Impact Weapon Shock Maul Slashing Weapon Axe Build | -11 -10 -10 -10 -8 -6 -5 -4 -4 -4 -4 -3 -3 -3 -2 -2 -1 ------- Run | Yrd Mat Min Sub Scr Fac Fac Fac Upp Upp Zhi Pro Res Tes Res DSF Acc Slots Evolved 18 | . . . . . 8 2 2 . . . . 2 . 2 . 2 Power 1 | . . . . . . . 1 . . . . . . . . . Propulsion 4 | . . . . . 3 . . . . . . . . 1 . . Utility 10 | . . . . . 4 2 1 . . . . 1 . 1 . 1 Weapon 3 | . . . . . 1 . . . . . . 1 . . . 1 Parts Attached 144 | 6 10 9 2 7 15 11 8 5 2 6 4 8 12 . 6 33 Power 15 | 1 1 1 . 2 2 . 1 . . 1 . 1 2 . . 3 Engine 4 | 1 1 1 . 1 . . . . . . . . . . . . Core 3 | . . . . 1 2 . . . . . . . . . . . Reactor 8 | . . . . . . . 1 . . 1 . 1 2 . . 3 Propulsion 42 | 2 4 4 . 3 3 1 . 2 1 3 . 1 2 . 4 12 Treads 10 | . 4 2 . . . . . . . . . . . . 3 1 Leg 19 | . . 1 . 2 3 1 . 2 1 3 . 1 . . . 5 Wheel 8 | 2 . 1 . 1 . . . . . . . . . . . 4 Hover 1 | . . . . . . . . . . . . . . . . 1 Flight 4 | . . . . . . . . . . . . . 2 . 1 1 Utility 55 | 1 2 1 1 2 7 8 3 3 1 2 2 3 6 . . 13 Device 36 | . . . 1 2 5 5 3 2 1 . 2 2 4 . . 9 Storage 5 | 1 1 . . . . 1 . . . 1 . . . . . 1 Processor 10 | . 1 1 . . 2 2 . . . . . 1 1 . . 2 Hackware 2 | . . . . . . . . . . . . . 1 . . 1 Protection 2 | . . . . . . . . 1 . 1 . . . . . . Artifact . | . . . . . . . . . . . . . . . . . Weapon 32 | 2 3 3 1 . 3 2 4 . . . 2 3 2 . 2 5 Energy Gun 9 | 1 . . . . 2 2 3 . . . . 1 . . . . Energy Cannon 4 | . . . . . . . . . . . . . . . 1 3 Ballistic Gun 11 | 1 2 3 1 . . . . . . . . 2 1 . . 1 Ballistic Cannon . | . . . . . . . . . . . . . . . . . Launcher 4 | . . . . . . . . . . . 2 . 1 . 1 . Special Weapon . | . . . . . . . . . . . . . . . . . Impact Weapon 2 | . 1 . . . . . . . . . . . . . . 1 Slashing Weapon 2 | . . . . . 1 . 1 . . . . . . . . . Piercing Weapon . | . . . . . . . . . . . . . . . . . Special Melee Weapon . | . . . . . . . . . . . . . . . . . Unidentified Prototypes 14 | . . . 1 1 . . 1 . . 4 . 1 5 . . 1 Parts Lost 77 | . . 1 . . . . 3 5 . . 1 7 23 . 8 29 Power 8 | . . . . . . . 1 . . . . 1 3 . 1 2 Propulsion 22 | . . . . . . . . 2 . . . . 7 . 1 12 Utility 29 | . . . . . . . 2 3 . . . 3 6 . 5 10 Weapon 18 | . . 1 . . . . . . . . 1 3 7 . 1 5 Highest Loss Streak 18 | . . 1 . . . . 3 5 . . 1 4 18 . 8 14 To Critical Strikes . | . . . . . . . . . . . . . . . . . Average Backups 13 | 1 11 14 14 14 14 14 14 12 14 15 14 13 8 5 4 7 Power 1 | . 1 2 2 1 1 1 . . . . . . . 1 1 1 Propulsion 1 | . 3 3 2 2 . 1 2 . 1 1 1 1 . . . 1 Utility 4 | . 2 5 5 5 5 5 5 4 5 4 5 4 3 2 2 3 Weapon 5 | . 3 3 4 5 6 6 7 7 8 7 7 6 2 2 1 1 Tool/Special . | . . . . . . . . . . . . . . . . . Unused Backups 27 | . 3 3 . 1 5 4 3 . 1 1 . . 1 . . 5 Power 3 | . . . . . 1 . . . . . . . . . . 2 Propulsion 4 | . . 2 . . . . . . 1 1 . . . . . . Utility 10 | . 1 1 . . 2 2 1 . . . . . . . . 3 Weapon 10 | . 2 . . 1 2 2 2 . . . . . 1 . . . Tool/Special . | . . . . . . . . . . . . . . . . . Average Slot Usage (%) 90 | . 95 100 100 100 96 99 98 98 100 99 99 97 57 43 27 45 Engine 3 | . 14 14 14 12 . . . . . . . . . . . . Core 2 | . . . . 1 6 5 8 5 5 2 . . . . . . Reactor 2 | . . . . . . . . 5 5 7 10 8 4 4 1 2 Treads 2 | . 10 15 . . . . . . . . . . . . 5 2 Leg 19 | . . . 14 15 31 29 26 25 26 26 26 23 8 . . 10 Wheel 3 | . 17 12 14 12 . . . . . . . . . . . 3 Device 21 | . . . 10 14 26 27 30 30 33 33 31 32 19 17 7 10 Storage 7 | . 14 14 14 14 6 6 6 10 7 5 5 7 4 . . 2 Processor 6 | . 9 14 4 . 4 10 8 5 5 5 5 4 6 8 3 6 Energy Gun 8 | . 5 . . . 12 11 11 14 15 13 12 12 2 . . . Ballistic Gun 6 | . 21 27 28 28 1 . . . . . . 4 3 . . . Slashing Weapon 1 | . . . . . 4 4 3 . . 1 . . . 4 3 1 Peak Build Rating 138 | 6 12 17 24 29 69 84 100 103 104 120 124 138 137 78 80 124 Average Rating 70 | 4 9 12 22 19 63 78 92 99 102 111 117 129 83 78 64 77 On Entrance 67 | . 6 12 17 24 29 69 84 93 103 104 118 124 137 78 78 71 Naked Turns . | . . . . . . . . . . . . . . . . . Heaviest Build 99 | 11 29 32 32 32 62 59 70 69 67 69 89 87 88 15 22 99 Greatest Support 225 | 26 40 40 16 30 80 81 81 96 96 131 131 131 140 16 225 225 Greatest Overweight (x) 10 | . 2 1 1 10 1 . . 1 . . . 1 1 . 1 1 Average Overweight (x) . | . . . 1 1 . . . . . . . . . . . . Largest Inventory Capacity 20 | 8 15 15 15 15 15 15 15 15 15 15 15 15 15 5 5 20 Average Capacity 14 | 6 12 15 15 15 15 15 15 15 15 15 15 15 9 5 5 14 Most Carried 15 | 4 15 15 15 15 15 15 15 15 15 15 15 15 15 5 5 15 Average Carried 13 | 1 11 14 14 14 14 14 14 12 14 14 14 13 7 5 4 7 Final Capacity 15 | 8 15 15 15 15 15 15 15 15 15 15 15 15 5 5 5 5 Final Carried 15 | 4 15 14 14 14 15 15 15 13 15 15 15 14 5 5 5 5 Class Distribution -------------------- 31% | Mutant 21% | Skirmisher 18% | Scavenger-Assassin 10% | Assassin 6% | Scavenger-Mutant 4% | Scavenger-Skirmisher Dominant Class ---------------- Mutant | -10/Materials Scavenger-Mutant | -10/Mines Mutant | -10/Subcaves Mutant | -8/Scraptown Scavenger-Assassin | -6/Factory Scavenger-Assassin | -5/Factory Assassin | -4/Factory Skirmisher | -4/Upper Caves Skirmisher | -4/Upper Caves Assassin | -4/Zhirov Skirmisher | -3/Proximity Caves Scavenger-Tank | -3/Research Scout | -3/Testing Scout | -2/Research Mutant | -2/DSF Mutant | -1/Access Resources | -11 -10 -10 -10 -8 -6 -5 -4 -4 -4 -4 -3 -3 -3 -2 -2 -1 ----------- Run | Yrd Mat Min Sub Scr Fac Fac Fac Upp Upp Zhi Pro Res Tes Res DSF Acc Matter Collected 3690 | 235 369 492 . 50 277 120 502 146 50 97 276 363 153 . 219 341 Remotely . | . . . . . . . . . . . . . . . . . Salvage Created 3856 | . 422 214 . . 128 80 535 302 163 374 407 650 47 . 97 437 Parts 149 | . 32 16 . . 8 . 12 9 2 2 7 30 3 . 5 23 Haulers Intercepted 1 | . 1 . . . . . . . . . . . . . . . Recyclers Shooed 2 | . 1 . . . . . 1 . . . . . . . . . Parts Field Recycled . | . . . . . . . . . . . . . . . . . Retrieved Matter . | . . . . . . . . . . . . . . . . . Parts Self-Destructed 20 | . . . . . . . . 7 7 1 5 . . . . . Prevented 3 | . . . . . . . . . 3 . . . . . . . Kills | -11 -10 -10 -10 -8 -6 -5 -4 -4 -4 -4 -3 -3 -3 -2 -2 -1 ------- Run | Yrd Mat Min Sub Scr Fac Fac Fac Upp Upp Zhi Pro Res Tes Res DSF Acc Combat Hostiles Destroyed 56 | . 11 8 . . 3 1 5 4 2 . 4 11 1 . 2 4 Melee 1 | . . . . . . . . . . . . . . . . 1 Guns 43 | . 11 8 . . 3 1 2 4 . . 3 10 1 . . . Cannons 2 | . . . . . . . . . . . . . . . . 2 AOE 3 | . . . . . . . . . . . 1 . . . 2 . Classes Destroyed 14 | . 6 1 . . 1 1 . . . . 2 1 1 . 1 . Worker 3 | . 2 . . . . . . . . . . 1 . . . . Builder 7 | . 1 . . . . . 1 . . . . . 1 . . 4 Hauler 1 | . 1 . . . . . . . . . . . . . . . Recycler 2 | . . 1 . . . . 1 . . . . . . . . . Operator 2 | . . . . . . . . . . . . 1 . . . 1 Drone 2 | . . . . . . . . . . . 2 . . . . . Watcher 2 | . 1 . . . . . . . . . . . . . . 1 Swarmer 17 | . 6 6 . . . . . . . . . 4 1 . . . Cutter 2 | . . . . . . . . . . . . . . . 2 . Grunt 13 | . 5 2 . . . . 3 2 1 . . . . . . . Researcher 1 | . . . . . . . . . . . . . 1 . . . Sentry 5 | . . . . . . 1 . 1 1 . . . . . . 2 Hunter 4 | . . . . . . . . . . . 2 2 . . . . Programmer 13 | . . . . . 3 . 2 1 . . . 5 . . . 2 Best Kill Streak 7 | . 5 3 . . 1 1 3 3 1 . 2 7 2 . 2 3 Combat Bots Only 6 | . 5 3 . . 1 1 2 3 1 . 2 6 1 . 2 2 Max Kills in Single Turn 2 | . 2 1 . . 1 1 2 1 1 . 1 2 2 . 2 1 Gunslinging 1 | . 1 . . . . . . . . . . 1 . . . . Exploded 2 | . . . . . . . . . . . 1 . . . 2 . Melee 1 | . . . . . . . . . . . . . . . . 1 Uniques/NPCs Destroyed . | . . . . . . . . . . . . . . . . . Combat | -11 -10 -10 -10 -8 -6 -5 -4 -4 -4 -4 -3 -3 -3 -2 -2 -1 -------- Run | Yrd Mat Min Sub Scr Fac Fac Fac Upp Upp Zhi Pro Res Tes Res DSF Acc Hostile Shots Fired 922 | . 56 60 . . 16 7 46 37 12 . 42 129 77 . 113 327 Missed 298 | . 8 7 . . 7 . 18 7 6 . 15 59 23 . 36 112 Hits 624 | . 48 53 . . 9 7 28 30 6 . 27 70 54 . 77 215 Melee 23 | . . . . . . . . . . . . . . . 22 1 Projectile 601 | . 48 53 . . 9 7 28 30 6 . 27 70 54 . 55 214 AOE 1 | . . . . . . . . . . . . . . . 1 . Critical Strikes 45 | . . . . . 2 1 1 4 . . 3 4 5 . 13 12 Part Disruptions 4 | . . . . . . . . . . . . 2 . . . 2 Damage Taken 14922 | . 480 485 . . 118 155 565 646 143 . 486 1071 2152 . 2595 6026 Core 3061 | . 88 93 . . 7 21 37 18 26 . 33 146 370 . 599 1623 Absorbed by Shields 296 | . . . . . 16 . . . . . . 176 104 . . . Redirected to Shielding 258 | . . . . . . . . 104 . . 144 10 . . . . Ignored by Resistances 12 | . . . . . . . . . . . . . 12 . . . Core Remaining (%) 75 | 100 . . . 27 99 97 . . . . 90 . 55 . 58 . Volleys Fired 203 | . 35 19 . . 8 6 19 11 5 . 20 28 19 . 3 30 Largest 4 | . 2 2 . . 3 2 3 3 3 . 3 4 4 . 1 2 Hottest 320 | . 70 56 . . 185 160 251 245 245 . 245 320 237 . 120 240 Shots Fired 466 | . 69 38 . . 18 12 54 28 16 . 41 102 46 . 3 39 Gun 411 | . 69 38 . . 18 12 54 28 16 . 31 102 39 . . 4 Cannon 36 | . . . . . . . . . . . . . . . 1 35 Launcher 19 | . . . . . . . . . . . 10 . 7 . 2 . Special . | . . . . . . . . . . . . . . . . . Kinetic 149 | . 54 38 . . 3 . . . . . . 22 28 . . 4 Thermal 298 | . 15 . . . 15 12 54 28 16 . 31 80 11 . 1 35 Explosive 19 | . . . . . . . . . . . 10 . 7 . 2 . Electromagnetic . | . . . . . . . . . . . . . . . . . Robot Hit Streak 15 | . 12 6 . . 5 14 15 5 12 . 5 13 11 . . 6 Robot Miss Streak 10 | . 3 2 . . 1 . 3 2 1 . 10 6 2 . 3 4 Penetration Max . | . . . . . . . . . . . . . . . . . Secondary Targets 5 | . 2 . . . . . . 1 . . . 2 . . . . Max Gunslinging Chain 1 | . 1 . . . . . . 1 . . . 1 . . . . Shots Hit Robots 296 | . 44 27 . . 12 9 33 16 12 9 24 58 28 . . 24 Core Hits 133 | . 23 10 . . 6 4 14 11 4 4 10 23 7 . 12 5 Critical Kills 2 | . . . . . . . . . . . . 1 . . . 1 Critical Parts Destroyed 6 | . . . . . . . . . . . . 2 3 . . 1 Critical Strikes 27 | . 2 . . . 2 1 5 2 2 . 2 6 3 . . 2 Burn 19 | . 2 . . . 2 1 5 2 2 . 2 3 . . . . Meltdown 1 | . . . . . . . . . . . . . . . . 1 Destroy 6 | . . . . . . . . . . . . 3 3 . . . Smash 1 | . . . . . . . . . . . . . . . . 1 Melee Attacks 89 | . 1 . . . 13 13 14 . . 9 10 . 10 . 2 17 Impact 8 | . 1 . . . . . . . . . . . . . . 7 Slashing 81 | . . . . . 13 13 14 . . 9 10 . 10 . 2 10 Piercing . | . . . . . . . . . . . . . . . . . Sneak Attacks 5 | . . . . . . . 1 . . . . . . . . 4 Combat Hostiles . | . . . . . . . . . . . . . . . . . Follow-up Attacks . | . . . . . . . . . . . . . . . . . Damage Inflicted 9709 | . 588 439 . . 278 174 801 350 230 712 1741 1531 1161 . 476 1228 Guns 5158 | . 586 436 . . 269 174 736 350 230 . 214 1457 594 . . 112 Cannons 616 | . . . . . . . . . . . . . . . . 616 Explosions 1811 | . . . . . . . . . . . 774 . 567 . 470 . Melee 1964 | . . . . . . . 65 . . 712 753 . . . . 434 Ramming 160 | . 2 3 . . 9 . . . . . . 74 . . 6 66 Kinetic 1909 | . 475 436 . . 60 . . . . . . 383 443 . . 112 Thermal 3910 | . 111 . . . 209 174 736 350 230 . 214 1074 196 . . 616 Explosive 1766 | . . . . . . . . . . . 774 . 522 . 470 . Electromagnetic . | . . . . . . . . . . . . . . . . . Impact 261 | . . . . . . . . . . . . . . . . 261 Slashing 1703 | . . . . . . . 65 . . 712 753 . . . . 173 Piercing . | . . . . . . . . . . . . . . . . . Highest Corruption 26 | . . . . . . . 3 4 4 4 4 7 10 . 3 26 Average Corruption 5 | . . . . . . . 2 3 4 4 4 5 7 . 3 12 Corruption Purged . | . . . . . . . . . . . . . . . . . Corruption Blocked . | . . . . . . . . . . . . . . . . . Effects 105 | . . . . . . . 11 14 10 6 21 7 16 . 2 18 Message Errors 14 | . . . . . . . 1 1 2 . 3 2 2 . . 3 Matter Fused 23 | . . . . . . . 6 4 . 1 5 . 4 . 1 2 Heat Flow Errors 20 | . . . . . . . 1 2 1 1 6 4 1 . . 4 Energy Discharges 17 | . . . . . . . 1 3 1 2 3 . 4 . . 3 Parts Fused 1 | . . . . . . . . . . . . 1 . . . . Data Loss (minor) 10 | . . . . . . . 1 2 1 . 2 . 3 . 1 . Data Loss (major) 9 | . . . . . . . 1 1 4 2 . . . . . 1 Misfires 4 | . . . . . . . . 1 1 . . . 1 . . 1 Alerts 1 | . . . . . . . . . . . 1 . . . . . Misdirections 2 | . . . . . . . . . . . . . . . . 2 Weapon Failures 4 | . . . . . . . . . . . 1 . 1 . . 2 Overload Shots . | . . . . . . . . . . . . . . . . . Overflow Damage 1076 | . . . . . . . 35 . . 224 462 5 45 . . 305 Projectiles . | . . . . . . . . . . . . . . . . . Explosions 180 | . . . . . . . . . . . 135 . 45 . . . Melee 896 | . . . . . . . 35 . . 224 327 5 . . . 305 Knockbacks 3 | . . . . . . . . . . . . 1 . . . 2 Impact 3 | . . . . . . . . . . . . 1 . . . 2 Kinetic . | . . . . . . . . . . . . . . . . . Secondary . | . . . . . . . . . . . . . . . . . Self-Inflicted Damage 93 | . . . . . . . . . . . . . 93 . . . Shots 3 | . . . . . . . . . . . . . 3 . . . Rammed 6 | . 2 1 . . . . . . . . . . . . 1 2 Targets Rammed 13 | . 2 1 . . 1 . . . . . . 2 . . 1 6 Kicked 6 | . . . . . 1 . . . . . . 2 . . . 3 Crushed 1 | . . . . . . . . . . . . . . . . 1 Highest Temperature 646 | . 110 23 . . 50 3 372 186 . . 30 455 113 . . 646 Average Temperature 113 | . 35 9 . . 19 3 136 56 . . 22 119 28 . . 191 Received Heat Transfer 1216 | . 174 108 . . . 18 133 141 36 . 57 . . . 81 468 Effects 27 | . . . . . . . 1 . . . . 3 . . . 23 Shutdowns 7 | . . . . . . . . . . . . 2 . . . 5 Energy Bleed 7 | . . . . . . . . . . . . . . . . 7 Interference 3 | . . . . . . . . . . . . . . . . 3 Matter Decay 1 | . . . . . . . . . . . . 1 . . . . Short Circuit 2 | . . . . . . . 1 . . . . . . . . 1 Damage (minor) 1 | . . . . . . . . . . . . . . . . 1 Damage (major) 4 | . . . . . . . . . . . . . . . . 4 Damage (core) 2 | . . . . . . . . . . . . . . . . 2 Siege Activations . | . . . . . . . . . . . . . . . . . Martial Activations . | . . . . . . . . . . . . . . . . . Shielding Activations . | . . . . . . . . . . . . . . . . . Robots Disrupted . | . . . . . . . . . . . . . . . . . Combat Hostiles . | . . . . . . . . . . . . . . . . . Robots Corrupted 3 | . . . . . . . . . . . . 1 . . . 2 Combat Hostiles . | . . . . . . . . . . . . . . . . . Parts Fried 4 | . . . . . . . . . . . . 2 . . . 2 Impact Corruptions 7 | . . . . . . . . . . . . 1 . . . 6 Robots Melted 7 | . . . . . . . 3 . 2 . . 1 . . . 1 Combat Hostiles 7 | . . . . . . . 3 . 2 . . 1 . . . 1 Parts Melted 47 | . 2 . . . 2 1 11 4 5 . 2 16 4 . . . Heat Transferred 9479 | . 481 . . . 585 498 2031 1050 800 . 750 2455 311 . . 518 Parts Sabotaged . | . . . . . . . . . . . . . . . . . Parts Stolen . | . . . . . . . . . . . . . . . . . Parts Stripped . | . . . . . . . . . . . . . . . . . Power Chain Reactions . | . . . . . . . . . . . . . . . . . Alert | -11 -10 -10 -10 -8 -6 -5 -4 -4 -4 -4 -3 -3 -3 -2 -2 -1 ------- Run | Yrd Mat Min Sub Scr Fac Fac Fac Upp Upp Zhi Pro Res Tes Res DSF Acc Maximum Alert Level 2 | . . . . . . . . . . . . 2 . . . 1 Low Security (%) 89 | 100 100 100 . . 100 100 100 . . . . . 100 100 100 57 Level 1 7 | . . . . . . . . . . . . 35 . . . 42 Level 2 3 | . . . . . . . . . . . . 64 . . . . Level 3 . | . . . . . . . . . . . . . . . . . Level 4 . | . . . . . . . . . . . . . . . . . Level 5 . | . . . . . . . . . . . . . . . . . High Security . | . . . . . . . . . . . . . . . . . Max Security . | . . . . . . . . . . . . . . . . . Peak Influence 502 | . 131 91 . . 31 20 64 . . . . 502 164 27 164 303 Initial 450 | . . 41 . . . . . . . . . 450 164 27 20 93 Average 59 | . 43 24 . . 3 . 10 . . . . 405 94 27 87 169 Influence Increases 3332 | . 335 240 . . 147 56 178 90 40 15 70 732 263 . 217 949 Destroy 0b10 Robot/C 1100 | . 220 160 . . 60 20 100 80 40 . 40 220 40 . 40 80 Destroy 0b10 Robot/NC 125 | . 25 5 . . . . 10 . . 15 20 10 5 . 5 30 Destroy Leader 256 | . 44 30 . . 30 10 20 10 . . 10 50 10 . 10 32 Disable Machine 120 | . 15 . . . 15 . 15 . . . . . 30 . . 45 Anti-Garrison Action 150 | . . . . . . . . . . . . . . . . 150 Destroy Structure 351 | . 1 . . . 12 26 18 . . . . 2 148 . 87 57 Advance Influence 450 | . . . . . . . . . . . . 450 . . . . Partial Spotted 45 | . . . . . . . . . . . . . 15 . . 30 Lose Combat Pursuer 735 | . 30 45 . . 30 . 15 . . . . . 15 . 75 525 Influence Decreases 3126 | . 228 274 59 14 147 56 173 95 40 15 70 440 505 23 87 900 Entered New Map 344 | . . 66 39 14 . . . 3 . . . . 128 23 7 64 Time Decay 1821 | . 228 198 20 . 147 56 163 62 40 15 60 190 196 . . 446 Search Patrol Dispatched 150 | . . . . . . . . . . . . 150 . . . . Lost Part 681 | . . 10 . . . . 10 30 . . 10 70 181 . 80 290 Lost Ally 130 | . . . . . . . . . . . . 30 . . . 100 Squads Dispatched 38 | . 2 . . . 5 2 4 . . . . 6 5 . 2 12 Investigation 2 | . 1 . . . . . . . . . . 1 . . . . Extermination 13 | . . . . . 4 2 2 . . . . 1 1 . . 3 Reinforcement 15 | . 1 . . . 1 . 2 . . . . 1 1 . 2 7 Assault 2 | . . . . . . . . . . . . . . . . 2 Garrison 6 | . . . . . . . . . . . . 3 3 . . . Intercept . | . . . . . . . . . . . . . . . . . Searches Triggered 1 | . . . . . . . . . . . . 1 . . . . Construction Impeded 1 | . . . . . . . . . . . . . . . . 1 Haulers Reinforced . | . . . . . . . . . . . . . . . . . Active Scanning Responses . | . . . . . . . . . . . . . . . . . Cargo Convoy Interrupts . | . . . . . . . . . . . . . . . . . Stealth | -11 -10 -10 -10 -8 -6 -5 -4 -4 -4 -4 -3 -3 -3 -2 -2 -1 --------- Run | Yrd Mat Min Sub Scr Fac Fac Fac Upp Upp Zhi Pro Res Tes Res DSF Acc Distress Signals 4 | . . . . . 1 . . . . . . 2 . . . 1 Communications Jammed 33 | . . . . . . . . . . . . . 21 . 1 11 Distress Signals 32 | . . . . . . . . . . . . . 21 . . 11 Times Spotted 159 | . 22 11 . . 6 2 8 4 2 . 8 15 8 . 16 57 Peak Tracking Total 20 | . 7 3 . . 3 1 3 3 1 . 3 7 3 . 10 20 Tactical Retreats 23 | . 1 2 . . 1 . 1 . . . . . 1 . 3 14 Traps | -11 -10 -10 -10 -8 -6 -5 -4 -4 -4 -4 -3 -3 -3 -2 -2 -1 ------- Run | Yrd Mat Min Sub Scr Fac Fac Fac Upp Upp Zhi Pro Res Tes Res DSF Acc Traps Triggered 4 | . 1 . . . . . . . . . . . 1 . . 2 Indirectly . | . . . . . . . . . . . . . . . . . Trap Hack Attempts . | . . . . . . . . . . . . . . . . . Triggered . | . . . . . . . . . . . . . . . . . Disarmed . | . . . . . . . . . . . . . . . . . Reprogrammed . | . . . . . . . . . . . . . . . . . Reused 1 | . . . . . . . . . 1 . . . . . . . Traps Extracted . | . . . . . . . . . . . . . . . . . Installed 2 | . . . . . . . . . 2 . . . . . . . Triggered 1 | . . . . . . . . . 1 . . . . . . . Machines | -11 -10 -10 -10 -8 -6 -5 -4 -4 -4 -4 -3 -3 -3 -2 -2 -1 ---------- Run | Yrd Mat Min Sub Scr Fac Fac Fac Upp Upp Zhi Pro Res Tes Res DSF Acc Machines Disabled 9 | . 1 . . . 1 . 1 . . . . . 2 . . 4 Max in Single Turn 2 | . 1 . . . 1 . 1 . . . . . 2 . . 1 Garrison Access 1 | . . . . . . . . . . . . . . . . 1 Machines Repaired . | . . . . . . . . . . . . . . . . . Machines Dismantled . | . . . . . . . . . . . . . . . . . Machines Sabotaged . | . . . . . . . . . . . . . . . . . Overloaded Fab Kills . | . . . . . . . . . . . . . . . . . Hacking | -11 -10 -10 -10 -8 -6 -5 -4 -4 -4 -4 -3 -3 -3 -2 -2 -1 --------- Run | Yrd Mat Min Sub Scr Fac Fac Fac Upp Upp Zhi Pro Res Tes Res DSF Acc Machines Accessed 14 | . 1 1 . 2 1 1 . . . 4 . . 2 1 . 1 Terminals 4 | . 1 . . . . . . . . . . . 2 1 . . Fabricators . | . . . . . . . . . . . . . . . . . Repair Stations . | . . . . . . . . . . . . . . . . . Recycling Units . | . . . . . . . . . . . . . . . . . Scanalyzers . | . . . . . . . . . . . . . . . . . Garrison Access 3 | . . . . . 1 1 . . . . . . . . . 1 Total Hacks 45 | . 3 1 . 17 1 2 . . . 16 . . 2 1 . 2 Successful 37 | . 1 1 . 17 . . . . . 16 . . 1 1 . . Failed 8 | . 2 . . . 1 2 . . . . . . 1 . . 2 Catastrophic 2 | . . . . . . 1 . . . . . . 1 . . . Database Lockouts . | . . . . . . . . . . . . . . . . . Manual . | . . . . . . . . . . . . . . . . . Terminals 6 | . 3 . . . . . . . . . . . 2 1 . . Fabricators . | . . . . . . . . . . . . . . . . . Repair Stations . | . . . . . . . . . . . . . . . . . Recycling Units . | . . . . . . . . . . . . . . . . . Scanalyzers . | . . . . . . . . . . . . . . . . . Garrison Access 5 | . . . . . 1 2 . . . . . . . . . 2 Terminal Hacks 37 | . 1 1 . 17 . . . . . 16 . . 1 1 . . Record 21 | . . . . 17 . . . . . 4 . . . . . . Part Schematic 4 | . . . . . . . . . . 4 . . . . . . Robot Analysis 4 | . . . . . . . . . . 4 . . . . . . Prototype ID Bank 5 | . 1 . . . . . . . . 4 . . . . . . Open Door 2 | . . 1 . . . . . . . . . . 1 . . . Open DSF 1 | . . . . . . . . . . . . . . 1 . . Fabricator Hacks . | . . . . . . . . . . . . . . . . . Repair Station Hacks . | . . . . . . . . . . . . . . . . . Recycling Unit Hacks . | . . . . . . . . . . . . . . . . . Scanalyzer . | . . . . . . . . . . . . . . . . . Garrison Access Hacks . | . . . . . . . . . . . . . . . . . Unauthorized Hacks . | . . . . . . . . . . . . . . . . . Terminals . | . . . . . . . . . . . . . . . . . Fabricators . | . . . . . . . . . . . . . . . . . Repair Stations . | . . . . . . . . . . . . . . . . . Recycling Units . | . . . . . . . . . . . . . . . . . Scanalyzers . | . . . . . . . . . . . . . . . . . Garrison Access . | . . . . . . . . . . . . . . . . . Data Cores Recovered . | . . . . . . . . . . . . . . . . . Used . | . . . . . . . . . . . . . . . . . Hacking Detections 5 | . 1 . . . 1 1 . . . . . . 1 . . 1 Full Trace Events . | . . . . . . . . . . . . . . . . . Feedback Events . | . . . . . . . . . . . . . . . . . Feedback Blocked . | . . . . . . . . . . . . . . . . . Robot Schematics Acquired . | . . . . . . . . . . . . . . . . . Robots Built . | . . . . . . . . . . . . . . . . . Authchips . | . . . . . . . . . . . . . . . . . Time . | . . . . . . . . . . . . . . . . . Total Robot Build Rating . | . . . . . . . . . . . . . . . . . Part Schematics Acquired 4 | . . . . . . . . . . 4 . . . . . . Parts Built . | . . . . . . . . . . . . . . . . . Authchips . | . . . . . . . . . . . . . . . . . Time . | . . . . . . . . . . . . . . . . . Total Part Build Rating . | . . . . . . . . . . . . . . . . . Parts Repaired . | . . . . . . . . . . . . . . . . . Time . | . . . . . . . . . . . . . . . . . Parts Recycled . | . . . . . . . . . . . . . . . . . Recycled Matter . | . . . . . . . . . . . . . . . . . Retrieved Matter . | . . . . . . . . . . . . . . . . . Retrieved Components . | . . . . . . . . . . . . . . . . . Parts Scanalyzed . | . . . . . . . . . . . . . . . . . Part Schematics Acquired . | . . . . . . . . . . . . . . . . . Parts Damaged . | . . . . . . . . . . . . . . . . . Bothacking | -11 -10 -10 -10 -8 -6 -5 -4 -4 -4 -4 -3 -3 -3 -2 -2 -1 ------------ Run | Yrd Mat Min Sub Scr Fac Fac Fac Upp Upp Zhi Pro Res Tes Res DSF Acc Used RIF Installer . | . . . . . . . . . . . . . . . . . Robots Hacked . | . . . . . . . . . . . . . . . . . Non-combat . | . . . . . . . . . . . . . . . . . Combat . | . . . . . . . . . . . . . . . . . Robot Hacks Applied . | . . . . . . . . . . . . . . . . . Relay Couplers Released 3 | . . . . . . . . . . . . . . . . 3 Machine Destruction 3 | . . . . . . . . . . . . . . . . 3 Fabnet Peak Effective % . | . . . . . . . . . . . . . . . . . Robots Rewired . | . . . . . . . . . . . . . . . . . Allies Hacked . | . . . . . . . . . . . . . . . . . Hacks Repelled . | . . . . . . . . . . . . . . . . . Allies | -11 -10 -10 -10 -8 -6 -5 -4 -4 -4 -4 -3 -3 -3 -2 -2 -1 -------- Run | Yrd Mat Min Sub Scr Fac Fac Fac Upp Upp Zhi Pro Res Tes Res DSF Acc Total Allies . | . . . . . . . . . . . . . . . . . Largest Group . | . . . . . . . . . . . . . . . . . Highest-Rated Group . | . . . . . . . . . . . . . . . . . Highest-Rated Ally . | . . . . . . . . . . . . . . . . . Total Orders 59 | . . . . . 9 3 5 . . . 9 4 . . . 29 ROAM 3 | . . . . . 2 . 1 . . . . . . . . . EXPLORE 55 | . . . . . 7 3 3 . . . 9 4 . . . 29 RETURN 1 | . . . . . . . 1 . . . . . . . . . Ally Attacks . | . . . . . . . . . . . . . . . . . Total Damage . | . . . . . . . . . . . . . . . . . Kills . | . . . . . . . . . . . . . . . . . Allies Corrupted 2 | . . . . . . . . . . . . . . . . 2 Allies Melted . | . . . . . . . . . . . . . . . . . Intel | -11 -10 -10 -10 -8 -6 -5 -4 -4 -4 -4 -3 -3 -3 -2 -2 -1 ------- Run | Yrd Mat Min Sub Scr Fac Fac Fac Upp Upp Zhi Pro Res Tes Res DSF Acc Active Infowar (turns) 10266 | . 471 601 43 1020 1986 1042 1051 482 363 270 1329 382 438 12 63 713 Optics 1072 | . 471 601 . . . . . . . . . . . . . . Sensors 8121 | . . . 43 1020 1772 988 973 425 241 270 1157 210 248 12 49 713 Terrain 4447 | . . . . . . 699 993 397 363 270 1329 74 247 12 63 . Structural 5989 | . . . . . 1928 594 584 482 363 270 1246 365 157 . . . Triangulation 2668 | . . . . . . 221 14 . 268 265 1329 382 189 . . . Jamming 514 | . . . . . . . . . . . . . 142 12 44 316 ECM 78 | . . . . . . . . . . . . . . . . 78 Robot Analysis Total 4 | . . . . . . . . . . 4 . . . . . . Derelict Logs Recovered 5 | . . 3 . 1 . . . . 1 . . . . . . . Drone Launches 56 | . . . . . 9 3 3 . . . 9 4 . . . 28 Drone Recoveries 36 | . . . . . 9 2 2 . . . 7 1 . . . 15 Exploration | -11 -10 -10 -10 -8 -6 -5 -4 -4 -4 -4 -3 -3 -3 -2 -2 -1 ------------- Run | Yrd Mat Min Sub Scr Fac Fac Fac Upp Upp Zhi Pro Res Tes Res DSF Acc Turns Passed 11282 | 49 667 868 57 1022 1986 1077 1051 482 363 270 1329 382 438 12 126 1103 Spaces Moved 8004 | 42 462 552 46 826 1289 640 578 304 263 183 840 186 478 26 153 1136 Core 697 | 3 . . . 6 . . . . . . . . 143 . . 545 Treads 225 | . 57 114 . . . . . . . . . . . . 28 26 Legs 4773 | . . . . 56 1289 640 578 304 263 183 840 186 92 . . 342 Wheels 1864 | 39 405 438 46 764 . . . . . . . . . . . 172 Hover . | . . . . . . . . . . . . . . . . . Flight 445 | . . . . . . . . . . . . . 243 26 125 51 Fastest Speed 40 | 50 90 115 115 100 120 120 120 120 124 124 124 120 45 45 45 40 Average Speed 110 | 86 111 137 115 120 120 120 120 127 124 124 124 122 61 45 64 73 Slowest Speed 550 | 90 160 240 115 550 190 120 120 190 124 124 124 190 190 45 145 182 Overloaded Moves . | . . . . . . . . . . . . . . . . . Propulsion Burnouts . | . . . . . . . . . . . . . . . . . Robots Hopped . | . . . . . . . . . . . . . . . . . Potential Cave-ins 14 | . . . . . . . 4 . . . . . 3 . . 7 Cave-ins Triggered . | . . . . . . . . . . . . . . . . . Teleports 1 | . . . . . . . . . . . . . 1 . . . Exploration Rate (%) 43 | 3 79 92 5 57 31 25 15 52 51 60 77 7 64 1 94 32 Regions Visited 16 Branch Regions 8 Pre-discovered Areas 5 | . . 2 . . . . . . . 3 . . . . . . Known Exits Taken 11 | . . 1 . . 1 1 1 1 1 1 1 1 1 1 . . Unknown Exits Taken 4 | 1 1 . 1 1 . . . . . . . . . . . . Scrap Searched 6 | . . 1 . 1 . . . . 2 . 2 . . . . . Spaces Dug 104 | . . . . . 11 13 10 . . . 44 . 9 . . 17 Terrain Destroyed 246 | . . . . . 11 13 10 . . . 69 3 84 . 29 27 Melee 52 | . . . . . 11 13 10 . . . . . 9 . . 9 Projectile 22 | . . . . . . . . . . . . 3 . . 1 18 AOE 172 | . . . . . . . . . . . 69 . 75 . 28 . Terrain Rammed . | . . . . . . . . . . . . . . . . . Walls Destroyed . | . . . . . . . . . . . . . . . . . Machines Disabled . | . . . . . . . . . . . . . . . . . Actions | -11 -10 -10 -10 -8 -6 -5 -4 -4 -4 -4 -3 -3 -3 -2 -2 -1 --------- Run | Yrd Mat Min Sub Scr Fac Fac Fac Upp Upp Zhi Pro Res Tes Res DSF Acc Total 9869 | 51 545 625 50 851 1682 907 862 371 287 214 1065 269 570 25 170 1325 Wait 1113 | . 7 16 . 5 326 208 199 46 9 1 178 26 25 . 2 65 Move 7988 | 41 461 551 45 825 1288 639 577 303 262 182 839 185 477 25 152 1136 Hop . | . . . . . . . . . . . . . . . . . Pick Up 106 | 4 15 11 1 5 14 8 10 2 3 3 1 6 6 . 1 16 Fast Attach 55 | 6 2 . . 2 3 1 2 1 . 4 . 3 6 . 6 19 Attach 68 | . . 3 1 . 7 1 5 4 . . 1 9 16 . 1 20 Detach 12 | . . . . . 1 . . . . 1 . 1 3 . . 6 Swap 134 | . 14 11 1 7 11 22 28 4 5 5 16 7 . . 1 2 Drop 86 | . 8 13 2 7 10 9 8 . 1 9 . 2 8 . 1 8 Fire 203 | . 35 19 . . 8 6 19 11 5 . 20 28 19 . 3 30 Melee 89 | . 1 . . . 13 13 14 . . 9 10 . 10 . 2 17 Ram 1 | . . . . . . . . . . . . . . . . 1 Kick 6 | . . . . . 1 . . . . . . 2 . . . 3 Crush 6 | . 2 1 . . . . . . . . . . . . 1 2 Escape Stasis . | . . . . . . . . . . . . . . . . . Rewire . | . . . . . . . . . . . . . . . . . Trap 2 | . . . . . . . . . 2 . . . . . . . Miscellaneous . | . . . . . . . . . . . . . . . . . Route ------- -11/Scrapyard -10/Materials (discovered 3 exits: *Mat x2 / *Min) -10/Mines (discovered 4 exits: *Mat x2 / *Exi / *Sub) -10/Subcaves -8/Scraptown -6/Factory (discovered 2 exits: *Fac x2) -5/Factory -4/Factory (discovered 2 exits: *Upp / [Ext]) -4/Upper Caves -4/Upper Caves -4/Zhirov -3/Proximity Caves -3/Research (discovered 2 exits: *Res / *Tes) -3/Testing -2/Research -2/DSF -1/Access History --------- Turn | Location | Event 8 | -11/Scrapyard | Discovered new exit (range 15) 50 | -11/Scrapyard | Entered Materials 273 | -10/Materials | Discovered new exit (range 10) 315 | -10/Materials | Build established: Mutant 513 | -10/Materials | Discovered new exit (range 18) 650 | -10/Materials | Derelicts attacked the area 687 | -10/Materials | Discovered new exit (range 18) 717 | -10/Materials | Entered Mines 765 | -10/Mines | Discovered new exit (range 7) 779 | -10/Mines | Joined a pair of Derelicts in attacking an 0b10 outpost 861 | -10/Mines | Discovered new exit (range 15) 1015 | -10/Mines | Learned location of Storage (-8) 1095 | -10/Mines | Build established: Scavenger-Mutant 1131 | -10/Mines | Found the Drone Emporium 1137 | -10/Mines | Found Prototype Device 1208 | -10/Mines | Core integrity fell below 50% 1310 | -10/Mines | Discovered new exit (range 13) 1323 | -10/Mines | Identified exit to Materials 1351 | -10/Mines | Found a damaged Exp. Sensor Array with a note attached 1353 | -10/Mines | Found Prototype Device 1391 | -10/Mines | A weapon hastily lodged in a ceiling crevice suddenly fell to the ground 1397 | -10/Mines | Deemed a non-threat by the Exiles lab entrance 1398 | -10/Mines | Discovered new exit (range 5) 1402 | -10/Mines | Identified exit to Exiles 1464 | -10/Mines | Learned Materials terminal intel 1509 | -10/Mines | Build established: Mutant 1584 | -10/Mines | Identified exit to Subcaves 1585 | -10/Mines | Entered Subcaves 1586 | -10/Subcaves | Approached by a straggling Scientist 1587 | -10/Subcaves | Shifting Twisted Machinery released Battle Rifle 1587 | -10/Subcaves | Shifting Twisted Machinery released Sub. Beam Cannon 1599 | -10/Subcaves | Identified Exp. Sensor Array 1602 | -10/Subcaves | Scientist uncovered a shortcut to Scraptown 1642 | -10/Subcaves | Entered Scraptown 1688 | -8/Scraptown | Heard Great Nut preacher, LISTEN AND RECITE! 1772 | -8/Scraptown | Identified Sensor Drone Bay 1870 | -8/Scraptown | Visited Cave Peace 1911 | -8/Scraptown | Visited Red Mages 1942 | -8/Scraptown | Visited Comm Corps 1995 | -8/Scraptown | Visited Spacefarers 2100 | -8/Scraptown | Scanned Subdweller tech in exchange for log data 2103 | -8/Scraptown | Learned Factory trap positions 2120 | -8/Scraptown | Discovered new exit (range 5) 2277 | -8/Scraptown | Visited IN-MT5's Study 2310 | -8/Scraptown | Visited SPCMW 2360 | -8/Scraptown | Visited Assassins FH 2664 | -8/Scraptown | Entered Factory 2664 | -6/Factory | Evolved 8 slots: Propulsion x3, Utility x4, Weapon x1 2665 | -6/Factory | Loaded intel: 115 trap records 3027 | -6/Factory | Build established: Scavenger-Skirmisher 3445 | -6/Factory | Build established: Scavenger-Assassin 4119 | -6/Factory | Discovered new exit (range 20) 4149 | -6/Factory | Identified exit to Factory 4549 | -6/Factory | Discovered exit to Factory (range 34) 4650 | -6/Factory | Entered another Factory area 4650 | -5/Factory | Evolved 2 slots: Utility x2 4718 | -5/Factory | Allied Derelicts emerged from ambush trap array 5712 | -5/Factory | Discovered new exit (range 5) 5717 | -5/Factory | Identified exit to Factory 5727 | -5/Factory | Entered another Factory area 5727 | -4/Factory | Evolved 2 slots: Power x1, Utility x1 6148 | -4/Factory | Discovered new exit (range 9) 6434 | -4/Factory | Lost 3 parts (1p2u) 6683 | -4/Factory | Discovered new exit (range 14) 6701 | -4/Factory | Identified exit to Upper Caves 6778 | -4/Factory | Entered Upper Caves 6780 | -4/Upper Caves | Attracted the attention of an 0b10 checkpoint 6846 | -4/Upper Caves | Lost 5 parts (2n3u) 7111 | -4/Upper Caves | Build established: Skirmisher 7255 | -4/Upper Caves | Discovered new exit (range 5) 7258 | -4/Upper Caves | Identified exit to Upper Caves 7260 | -4/Upper Caves | Entered another Upper Caves area 7262 | -4/Upper Caves | Attracted the attention of an 0b10 checkpoint 7467 | -4/Upper Caves | Encountered a Warlord checkpoint 7478 | -4/Upper Caves | Learned Research garrison access intel 7608 | -4/Upper Caves | Discovered new exit (range 10) 7621 | -4/Upper Caves | Identified exit to Zhirov 7623 | -4/Upper Caves | Entered Zhirov 7623 | -4/Zhirov | Discovered new exit (range 3) 7646 | -4/Zhirov | Met Zhirov 7673 | -4/Zhirov | Learned location of Quarantine (-2) 7673 | -4/Zhirov | Learned location of Testing (-3) 7673 | -4/Zhirov | Learned location of Command (-1) 7682 | -4/Zhirov | Zhirov requested help retrieving the SGEMP Prototype 7707 | -4/Zhirov | Found Alien Artifact 7707 | -4/Zhirov | Identified Integrated Reactor 7707 | -4/Zhirov | Installed Integrated Reactor, increased core energy generation (+10) 7725 | -4/Zhirov | Found Alien Artifact 7892 | -4/Zhirov | Identified exit to Proximity Caves 7893 | -4/Zhirov | Entered Proximity Caves 7896 | -3/Proximity Caves | Spotter reported a threat 7898 | -3/Proximity Caves | Spotter reported a threat 7987 | -3/Proximity Caves | Spotter reported a threat 9094 | -3/Proximity Caves | Discovered new exit (range 10) 9214 | -3/Proximity Caves | Identified exit to Research 9218 | -3/Proximity Caves | Attracted the attention of an 0b10 checkpoint 9222 | -3/Proximity Caves | Entered Research 9222 | -3/Research | Evolved 2 slots: Utility x1, Weapon x1 9223 | -3/Research | Loaded intel: 4 garrison access locations 9224 | -3/Research | Discovered new exit (range 18) 9234 | -3/Research | Discovered new exit (range 26) 9240 | -3/Research | Identified exit to Testing 9383 | -3/Research | Garrison activated, responded to threat 9434 | -3/Research | Lost 4 parts (1p1u2w) 9472 | -3/Research | Search patrols dispatched 9540 | -3/Research | Found Prototype Processor 9540 | -3/Research | Identified Spectral Analyzer 9604 | -3/Research | Entered Testing 9626 | -3/Testing | Spotted PX-5WINAU7WFE 9635 | -3/Testing | Garrison activated, responded to threat 9680 | -3/Testing | Lost 4 parts (1p1n1u1w) 9698 | -3/Testing | Spotted PD-OHNQB0XKZR 9791 | -3/Testing | Identified Transdimensional Reconstructor 9791 | -3/Testing | Warped through subspace 9814 | -3/Testing | Lost 18 parts (2p6n4u6w) 9937 | -3/Testing | Found Prototype Device 9937 | -3/Testing | Identified Exp. EM Disruption Field 9961 | -3/Testing | Found Prototype Device 9961 | -3/Testing | Identified Adv. EM Shield 9993 | -3/Testing | Discovered new exit (range 11) 9997 | -3/Testing | System corruption reached 10% 10041 | -3/Testing | Identified exit to Research 10042 | -3/Testing | Entered Research 10042 | -2/Research | Evolved 2 slots: Propulsion x1, Utility x1 10054 | -2/Research | Identified exit to DSF 10054 | -2/Research | Entered DSF 10077 | -2/DSF | Additional patrols routed to DSF 10120 | -2/DSF | Discovered new exit (range 14) 10148 | -2/DSF | Lost 8 parts (1p1n5u1w) 10180 | -2/DSF | Entered Access 10180 | -1/Access | Evolved 2 slots: Utility x1, Weapon x1 10376 | -1/Access | Build established: Mutant 10494 | -1/Access | Lost 3 parts (2n1w) 10789 | -1/Access | Lost 4 allies 11040 | -1/Access | System corruption reached 10% 11048 | -1/Access | Core integrity fell below 50% 11106 | -1/Access | Allied Derelicts emerged from ambush trap array 11108 | -1/Access | P-80 Master assimilated allied 20-5GK(g) 11183 | -1/Access | Lost 14 parts (2p3n6u3w) 11231 | -1/Access | Core integrity fell below 20% 11283 | -1/Access | Destroyed by G-73 Enforcer with Phase Gun Last Messages --------------- 11229_ Slug penetrates Wall. 11232_ Slug penetrates P-80 Master. 11232_ Slug penetrates Wall. 11242_ %Y=FOMEWLDF%5ASXBX>HL FV4D 5TGN 11243_ Drone sends a signal. 11250_ Imp. VSS Leg destroyed. 11255_ Critical hit (Burn: +37). 11256_ P-80 Master resets L-61 Swordsman, system corruption cleaned. 11257_ Centrium Wheel destroyed. 11259_ System corrupted: Heat flow error (+220). 11259_ Adv. Sensor Array destroyed. 11264_ Centrium Wheel destroyed. 11267_ Imp. Reaction Control System destroyed. 11276_ Imp. VSS Leg destroyed. 11276_ Centrium Leg destroyed. 11276_ Dropped Adv. Transmission Jammer. 11278_ K-01 Serf destroyed. 11281_ Imp. Targeting Computer destroyed. 11281_ P-80 Master resets L-61 Swordsman, system corruption cleaned. 11283_ Adv. ECM Suite destroyed. Map ----- +----------------------------------------------------+ | ###+#############?????????# # | | #############??????# # | | # #?????# # | | # ??????# " # | | ###### # ????????# """ + | | ?????# # "????????# """ # | | ?????# # """????????# " # | | ?????# # """"????????# # | | #########+### # """????????# # | | # # """" #?????########## | | # # " #??????????????# | | # + #??????????????# | | # # #??????????????# | | """"" # # #??????????????# | | """""""" # ##############?????????????## | | """""""" # #??????????????????????????# | | """"" # #??????????????????????????# | | # #???????????##?????????????# | | # #??????????# #######???????# | | # #????????? #???????# | | # #????????? ########## | | ############# g########? # # | | ???????????## ggp #? !! # "! | | ????????????# k p # !! # ="= | | ????????????# # ! # " [ | | ????????????# A @ + #""" # | | ????????????# # # """ # | | ????????????# g l # # " # | | ????????????# g #? # # | | ????????????######## #? # # | | ???????????????????# g #??""" """ ########## | | ???????????????????# = #??"""T"""? #????????# | | ???????????????????# % #???######???????????# | | ???????????????????# #????????????????????# | | ???????????????????# !#????????????????????# | | ???????????????????# #????????????????????# | | ???????????????????###### ##????????????????????# | | ????????????????????????# ##????????????????????# | | ????????????????????????# ##????????????????????# | | ????????????????????????# ##???????????#######??# | | ????????????????????????# #????????????# #### | | ????????????????????????# #????????????# | | ????????????????????????# #????????????# | | ????????????????????????# ##???????????# | | ????????????????????????# ##???????????# = ###+# | | ????????????????????????# #????????????## ## | | ????????????????????????# #?????????????# ## | | ????????????????????????# #?????????????# ## | | ????????????????????????# #?????????????# ## | | ?????????????????????#### #?????????????# ## | +----------------------------------------------------+ Best States ------------- Heat Dissipation 122 Energy Generation 49 Energy Capacity 1020 Matter Stores 300 Matter Capacity 300 Sight Range 18 Robot Scan Range 20 Terrain Scan Range 20 Terrain Scan Density 210 ECM Strength 1 Jamming Range 16 Base Temperature (-) 200 Resistance: TH 25 Resistance: EM 50 Propulsion Shielding 90 Evasion (%) 67 Targeting Accuracy 6 Target Analysis 8 Recoil Reduction 6 Energy Filtering 30 Offensive Hacking 10 Defensive Hacking 12 Item Schematics ----------------- Assault Drone Bay | -4/Zhirov | Free Exp. Heat Sink | -4/Zhirov | Free Exp. Optical Array | -4/Zhirov | Free Imp. Arc Thrower | -4/Zhirov | Free Robot Schematics ------------------ None Fabricated ------------ Nothing Repaired ---------- Nothing Alien Tech Used ----------------- Integrated Reactor Transdimensional Reconstructor Achievements -------------- Release The Drones! Challenges ------------ None Game ------ Seed VortexCoolantPlating Manual? 0 Play Time 03:18:33 Cumulative 58.8 hours Start 2025.09.29 @ 22:55:43 End 2025.09.30 @ 12:25:24 Sessions 3 Manual Loads 0 Difficulty Rogue Special Mode None Game No. 51 Rogue 51 Adventurer 0 Explorer 0 Win Type - Total 1 Types 1/0/0/0/0/0/0/0/0/0 Lore% 23 Gallery% 37 Achievement% 35 Wizard Run 0 Options --------- Layout 0 ASCII 0 Keyboard 0 Movement Mouse Keybinds 0 Fullscreen 1 Font 18/SmallcapsGlow Map View 76x50 Zoom Use 0% Tactical HUD 1 Map Filters NONE Filters NONE Steam 1 RUN: 7bf9794c-25f4-4f04-af84-07f83088174f